Cogmind - Beta 15 @@@ ROGUE MODE // 2025.05.07 @ 01:17:03 Player: Cereal Killer Result: Destroyed by MW-9IC(R) with Subdweller Laser Performance ------------- Evolutions (0) 0 Regions Visited (3) 600 Robots Destroyed (21) 105 Value Destroyed (527) 527 Prototype IDs (2) 40 Alien Tech Used (0) 0 Bonus (14) 14 TOTAL SCORE: 1286 Bonus ------- Follower Combat Kills 14 Cogmind --------- Core Integrity 0/250 Matter 175/300 Energy 265/265 System Corruption 0% Temperature Cool (6) Movement Treading (160) Location -10/Subcaves Parts ------- > --- POWER (1) -------- Improved Ion Engine > --- PROPULSION (2) --- Light Treads Light Treads > --- UTILITY (2) ------ Large Storage Unit Light Armor Plating > --- WEAPON (2) ------- Particle Gun Battle Cannon > --- INVENTORY (15) --- Subdweller Power Source Light Treads Compact Wheel Compact Wheel Improved Heat Sink Subdweller Optics Light Armor Plating Makeshift Light Armor Plating Makeshift Light Armor Plating Makeshift System Restoration Module Makeshift Laser Rocket Launcher Subdweller Shrapnel Launcher Dirty Datajack (20) Peak State ------------ > --- POWER ------------ Improved Ion Engine > --- PROPULSION ------- Wheel Compact Wheel > --- UTILITY ---------- Improved Heat Sink Small Storage Unit > --- WEAPON ----------- Particle Gun Particle Gun > --- INVENTORY -------- Improved Ion Engine Improved Ion Engine Light Treads Light Treads Wheel Particle Gun Particle Gun Light Assault Rifle [Rating: 13] Favorites ----------- Power Improved Ion Engine Engine Improved Ion Engine Propulsion Light Treads Treads Light Treads Wheel Wheel Utility Large Storage Unit Device Improved Heat Sink Storage Large Storage Unit Protection Light Armor Plating Weapon Particle Gun Energy Gun Particle Gun Ballistic Gun Heavy Assault Rifle Ballistic Cannon Battle Cannon Launcher Rocket Launcher Build | -11 -10 -10 -10 ------- Run | Yrd Mat Min Sub Slots Evolved . | . . . . Power . | . . . . Propulsion . | . . . . Utility . | . . . . Weapon . | . . . . Parts Attached 26 | 6 7 7 6 Power 4 | 1 1 1 1 Engine 4 | 1 1 1 1 Core . | . . . . Reactor . | . . . . Propulsion 6 | 2 2 2 . Treads 3 | . 1 2 . Leg . | . . . . Wheel 3 | 2 1 . . Hover . | . . . . Flight . | . . . . Utility 7 | 1 1 3 2 Device 1 | . 1 . . Storage 3 | 1 . 2 . Processor . | . . . . Hackware . | . . . . Protection 3 | . . 1 2 Artifact . | . . . . Weapon 9 | 2 3 1 3 Energy Gun 4 | . 3 . 1 Energy Cannon . | . . . . Ballistic Gun 3 | 2 . 1 . Ballistic Cannon 1 | . . . 1 Launcher 1 | . . . 1 Special Weapon . | . . . . Impact Weapon . | . . . . Slashing Weapon . | . . . . Piercing Weapon . | . . . . Special Melee Weapon . | . . . . Unidentified Prototypes . | . . . . Parts Lost 7 | . 2 1 4 Power 2 | . . 1 1 Propulsion 1 | . 1 . . Utility 2 | . . . 2 Weapon 2 | . 1 . 1 Highest Loss Streak 2 | . 1 1 2 To Critical Strikes . | . . . . Average Backups 11 | 5 7 8 14 Power 1 | 1 1 1 1 Propulsion 2 | 1 2 2 3 Utility 4 | . . 2 6 Weapon 2 | 1 2 2 2 Tool/Special . | . . . . Unused Backups 14 | . 2 . 12 Power 2 | . 1 . 1 Propulsion 2 | . . . 2 Utility 6 | . . . 6 Weapon 3 | . 1 . 2 Tool/Special 1 | . . . 1 Average Slot Usage (%) 99 | . 94 99 100 Engine 14 | . 14 14 14 Treads 23 | . . 21 28 Wheel 4 | . 27 6 . Device 4 | . 9 11 . Storage 14 | . 14 14 14 Protection 8 | . . 2 14 Energy Gun 13 | . 25 24 5 Ballistic Gun 6 | . 2 2 8 Ballistic Cannon 7 | . . . 12 Peak Build Rating 13 | 6 13 13 13 Average Rating 12 | 2 11 12 12 On Entrance 7 | . 6 13 11 Naked Turns . | . . . . Heaviest Build 37 | 12 19 36 37 Greatest Support 40 | 26 26 40 40 Greatest Overweight (x) . | . . . . Average Overweight (x) . | . . . . Largest Inventory Capacity 15 | 8 8 15 15 Average Capacity 12 | 7 8 11 15 Most Carried 15 | 8 8 13 15 Average Carried 11 | 5 7 8 14 Final Capacity 15 | 8 8 15 15 Final Carried 14 | 4 8 12 14 Class Distribution -------------------- 100% | Mutant Dominant Class ---------------- Mutant | -10/Materials Mutant | -10/Mines Mutant | -10/Subcaves Resources | -11 -10 -10 -10 ----------- Run | Yrd Mat Min Sub Matter Collected 638 | 260 70 75 233 Remotely . | . . . . Salvage Created 564 | . 167 129 268 Parts 37 | . 8 13 16 Haulers Intercepted . | . . . . Recyclers Shooed 1 | . . 1 . Parts Field Recycled . | . . . . Retrieved Matter . | . . . . Parts Self-Destructed 7 | . . . 7 Prevented . | . . . . Kills | -11 -10 -10 -10 ------- Run | Yrd Mat Min Sub Combat Hostiles Destroyed 18 | . 6 4 8 Guns 15 | . 6 4 5 Cannons 3 | . . . 3 Classes Destroyed 7 | . 3 2 2 Worker 1 | . . 1 . Recycler 1 | . . 1 . Watcher 1 | . 1 . . Swarmer 7 | . 3 4 . Grunt 4 | . 3 . 1 Sentry 1 | . . . 1 Subdweller 6 | . . . 6 Best Kill Streak 3 | . 3 3 2 Combat Bots Only 3 | . 3 3 2 Max Kills in Single Turn 1 | . 1 1 1 Gunslinging . | . . . . Exploded . | . . . . Melee . | . . . . Uniques/NPCs Destroyed . | . . . . Combat | -11 -10 -10 -10 -------- Run | Yrd Mat Min Sub Hostile Shots Fired 134 | . 53 38 43 Missed 43 | . 22 10 11 Hits 91 | . 31 28 32 Projectile 91 | . 31 28 32 Damage Taken 1299 | . 298 250 751 Core 254 | . 55 59 140 Absorbed by Shields . | . . . . Core Remaining (%) 100 | 100 . . . Volleys Fired 82 | . 23 19 40 Largest 2 | . 2 2 2 Hottest 130 | . 130 130 98 Shots Fired 159 | . 43 38 78 Gun 119 | . 43 38 38 Cannon 38 | . . . 38 Launcher 2 | . . . 2 Special . | . . . . Kinetic 70 | . . . 70 Thermal 87 | . 43 38 6 Explosive 2 | . . . 2 Electromagnetic . | . . . . Robot Hit Streak 7 | . 4 5 7 Robot Miss Streak 6 | . 3 6 2 Penetration Max . | . . . . Secondary Targets 2 | . 1 1 . Max Gunslinging Chain 1 | . 1 1 . Shots Hit Robots 76 | . 25 12 39 Core Hits 27 | . 9 6 12 Critical Kills . | . . . . Critical Parts Destroyed . | . . . . Critical Strikes 1 | . 1 . . Burn 1 | . 1 . . Melee Attacks . | . . . . Impact . | . . . . Slashing . | . . . . Piercing . | . . . . Sneak Attacks . | . . . . Combat Hostiles . | . . . . Follow-up Attacks . | . . . . Damage Inflicted 1291 | . 424 227 640 Guns 863 | . 424 210 229 Cannons 411 | . . . 411 Explosions . | . . . . Melee . | . . . . Ramming 17 | . . 17 . Kinetic 591 | . . . 591 Thermal 683 | . 424 210 49 Explosive . | . . . . Electromagnetic . | . . . . Impact . | . . . . Slashing . | . . . . Piercing . | . . . . Highest Corruption . | . . . . Average Corruption . | . . . . Corruption Purged . | . . . . Corruption Blocked . | . . . . Overload Shots . | . . . . Overflow Damage . | . . . . Projectiles . | . . . . Explosions . | . . . . Melee . | . . . . Knockbacks 3 | . . . 3 Impact . | . . . . Kinetic 3 | . . . 3 Secondary . | . . . . Self-Inflicted Damage . | . . . . Shots . | . . . . Rammed 1 | . . 1 . Targets Rammed 1 | . . 1 . Kicked . | . . . . Crushed . | . . . . Highest Temperature 273 | . 273 261 6 Average Temperature 98 | . 114 85 3 Received Heat Transfer 204 | . 72 9 123 Effects 1 | . 1 . . Energy Bleed 1 | . 1 . . Siege Activations . | . . . . Martial Activations . | . . . . Shielding Activations . | . . . . Robots Disrupted . | . . . . Combat Hostiles . | . . . . Robots Corrupted . | . . . . Combat Hostiles . | . . . . Parts Fried . | . . . . Impact Corruptions . | . . . . Robots Melted . | . . . . Combat Hostiles . | . . . . Parts Melted 1 | . 1 . . Heat Transferred 1665 | . 1073 481 111 Parts Sabotaged . | . . . . Parts Stolen . | . . . . Parts Stripped . | . . . . Power Chain Reactions . | . . . . Alert | -11 -10 -10 -10 ------- Run | Yrd Mat Min Sub Maximum Alert Level . | . . . . Low Security (%) 100 | 100 100 100 . Level 1 . | . . . . Level 2 . | . . . . Level 3 . | . . . . Level 4 . | . . . . Level 5 . | . . . . High Security . | . . . . Max Security . | . . . . Peak Influence 125 | . 125 100 . Initial 45 | . . 45 . Average 36 | . 69 27 . Influence Increases 474 | . 231 188 55 Destroy 0b10 Robot/C 280 | . 120 120 40 Destroy 0b10 Robot/NC 15 | . 5 10 . Destroy Leader 52 | . 32 20 . Allied During Kill 8 | . . 8 . Successful Hack 29 | . 29 . . Lose Combat Pursuer 90 | . 45 30 15 Influence Decreases 474 | . 115 295 64 Entered New Map 76 | . . 71 5 Time Decay 378 | . 95 224 59 Lost Part 20 | . 20 . . Squads Dispatched 1 | . 1 . . Investigation . | . . . . Extermination . | . . . . Reinforcement 1 | . 1 . . Assault . | . . . . Garrison . | . . . . Intercept . | . . . . Searches Triggered . | . . . . Construction Impeded . | . . . . Haulers Reinforced . | . . . . Active Scanning Responses . | . . . . Cargo Convoy Interrupts . | . . . . Stealth | -11 -10 -10 -10 --------- Run | Yrd Mat Min Sub Distress Signals . | . . . . Communications Jammed . | . . . . Distress Signals . | . . . . Times Spotted 34 | . 15 9 10 Peak Tracking Total 4 | . 4 3 2 Tactical Retreats 3 | . 1 1 1 Traps | -11 -10 -10 -10 ------- Run | Yrd Mat Min Sub Traps Triggered 4 | . . . 4 Indirectly . | . . . . Trap Hack Attempts . | . . . . Triggered . | . . . . Disarmed . | . . . . Reprogrammed . | . . . . Reused . | . . . . Traps Extracted . | . . . . Installed . | . . . . Triggered . | . . . . Machines | -11 -10 -10 -10 ---------- Run | Yrd Mat Min Sub Machines Disabled . | . . . . Max in Single Turn . | . . . . Machines Repaired . | . . . . Machines Dismantled . | . . . . Machines Sabotaged . | . . . . Overloaded Fab Kills . | . . . . Hacking | -11 -10 -10 -10 --------- Run | Yrd Mat Min Sub Machines Accessed 3 | . 3 . . Terminals 3 | . 3 . . Fabricators . | . . . . Repair Stations . | . . . . Recycling Units . | . . . . Scanalyzers . | . . . . Garrison Access . | . . . . Total Hacks 7 | . 7 . . Successful 4 | . 4 . . Failed 3 | . 3 . . Catastrophic 1 | . 1 . . Database Lockouts . | . . . . Manual 2 | . 2 . . Terminals 7 | . 7 . . Fabricators . | . . . . Repair Stations . | . . . . Recycling Units . | . . . . Scanalyzers . | . . . . Garrison Access . | . . . . Terminal Hacks 3 | . 3 . . Robot Analysis 1 | . 1 . . Prototype ID Bank 1 | . 1 . . Locate Traps 1 | . 1 . . Fabricator Hacks . | . . . . Repair Station Hacks . | . . . . Recycling Unit Hacks . | . . . . Scanalyzer . | . . . . Garrison Access Hacks . | . . . . Unauthorized Hacks 1 | . 1 . . Terminals 1 | . 1 . . Botnet 1 | . 1 . . Fabricators . | . . . . Repair Stations . | . . . . Recycling Units . | . . . . Scanalyzers . | . . . . Garrison Access . | . . . . Data Cores Recovered . | . . . . Used . | . . . . Hacking Detections 3 | . 3 . . Full Trace Events . | . . . . Feedback Events . | . . . . Feedback Blocked . | . . . . Robot Schematics Acquired . | . . . . Robots Built . | . . . . Authchips . | . . . . Time . | . . . . Total Robot Build Rating . | . . . . Part Schematics Acquired . | . . . . Parts Built . | . . . . Authchips . | . . . . Time . | . . . . Total Part Build Rating . | . . . . Parts Repaired . | . . . . Time . | . . . . Parts Recycled . | . . . . Recycled Matter . | . . . . Retrieved Matter . | . . . . Retrieved Components . | . . . . Parts Scanalyzed . | . . . . Part Schematics Acquired . | . . . . Parts Damaged . | . . . . Bothacking | -11 -10 -10 -10 ------------ Run | Yrd Mat Min Sub Used RIF Installer . | . . . . Robots Hacked . | . . . . Non-combat . | . . . . Combat . | . . . . Robot Hacks Applied . | . . . . Relay Couplers Released . | . . . . Fabnet Peak Effective % . | . . . . Robots Rewired . | . . . . Allies Hacked . | . . . . Hacks Repelled . | . . . . Allies | -11 -10 -10 -10 -------- Run | Yrd Mat Min Sub Total Allies 2 | . . 2 . Largest Group 2 | . . 2 2 Highest-Rated Group 42 | . . 42 42 Highest-Rated Ally 31 | . . 31 31 Total Orders . | . . . . Ally Attacks 12 | . . 10 2 Total Damage 83 | . . 62 21 Kills 2 | . . 2 . Allies Corrupted . | . . . . Allies Melted . | . . . . Intel | -11 -10 -10 -10 ------- Run | Yrd Mat Min Sub Active Infowar (turns) . | . . . . Robot Analysis Total 1 | . 1 . . Derelict Logs Recovered 4 | . . 1 3 Drone Launches . | . . . . Drone Recoveries . | . . . . Exploration | -11 -10 -10 -10 ------------- Run | Yrd Mat Min Sub Turns Passed 2476 | 55 257 751 1413 Spaces Moved 1504 | 47 181 487 789 Core 7 | 7 . . . Treads 1107 | . . 318 789 Legs . | . . . . Wheels 390 | 40 181 169 . Hover . | . . . . Flight . | . . . . Fastest Speed 50 | 50 90 90 160 Average Speed 141 | 77 90 135 160 Slowest Speed 160 | 90 90 160 160 Overloaded Moves . | . . . . Propulsion Burnouts . | . . . . Robots Hopped . | . . . . Potential Cave-ins . | . . . . Cave-ins Triggered . | . . . . Exploration Rate (%) 44 | 3 35 98 40 Regions Visited 3 Branch Regions 2 Pre-discovered Areas 3 | . . . 3 Known Exits Taken . | . . . . Unknown Exits Taken 3 | 1 1 1 . Scrap Searched 8 | . . 3 5 Spaces Dug 10 | . . . 10 Terrain Destroyed 19 | . . . 19 Melee . | . . . . Projectile . | . . . . AOE 19 | . . . 19 Terrain Rammed . | . . . . Walls Destroyed . | . . . . Machines Disabled . | . . . . Actions | -11 -10 -10 -10 --------- Run | Yrd Mat Min Sub Total 1694 | 65 232 539 858 Wait 35 | 3 9 12 11 Move 1501 | 46 180 486 789 Hop . | . . . . Pick Up 35 | 10 9 8 8 Fast Attach 2 | . 1 . 1 Attach 14 | 6 2 2 4 Detach . | . . . . Swap 12 | . 4 6 2 Drop 12 | . 4 5 3 Fire 82 | . 23 19 40 Melee . | . . . . Ram . | . . . . Kick . | . . . . Crush 1 | . . 1 . Escape Stasis . | . . . . Rewire . | . . . . Trap . | . . . . Miscellaneous . | . . . . Route ------- -11/Scrapyard -10/Materials -10/Mines (discovered 3 exits: [*Mat x2] / [*Sub]) -10/Subcaves History --------- Turn | Location | Event 12 | -11/Scrapyard | Discovered new exit (range 16) 56 | -11/Scrapyard | Entered Materials 285 | -10/Materials | Discovered new exit (range 12) 313 | -10/Materials | Entered Mines 315 | -10/Mines | Build established: Mutant 431 | -10/Mines | Learned location of 1 exit from Materials 644 | -10/Mines | Received a Rocket Launcher from a helpful Derelict 741 | -10/Mines | Discovered new exit (range 8) 875 | -10/Mines | Joined a pair of Derelicts in attacking an 0b10 outpost 946 | -10/Mines | Discovered new exit (range 7) 1050 | -10/Mines | Discovered new exit (range 6) 1064 | -10/Mines | Entered Subcaves 1064 | -10/Subcaves | Accompanied by 2 allies 1065 | -10/Subcaves | Approached by a straggling Scientist 1069 | -10/Subcaves | Led the pair of lost Derelicts to an unsafe place 1188 | -10/Subcaves | Lost 3 allies 1217 | -10/Subcaves | Shifting Twisted Machinery released Sub. Machine Gun 1244 | -10/Subcaves | Shifting Twisted Machinery released Mak. System Restoration Module 1304 | -10/Subcaves | Disturbed a concealed Subdweller 1306 | -10/Subcaves | Core integrity fell below 50% 1512 | -10/Subcaves | Learned location of Mines (-10) 1530 | -10/Subcaves | Shifting Twisted Machinery released Sub. Shrapnel Launcher 1532 | -10/Subcaves | A swath of the cavern ceiling suddenly collapsed 1687 | -10/Subcaves | Learned location of Zion (-7) 1830 | -10/Subcaves | Core integrity fell below 20% 2477 | -10/Subcaves | Destroyed by MW-9IC(R) with Subdweller Laser Last Messages --------------- 01966_ Critical hit (Impale). 01966_ Imp. Ion Engine destroyed. 01971_ Triggered Piercing Trap. 01971_ Spikes shoot up from the floor. 01971_ Critical hit (Impale). 02057_ Acquired 7 matter. 02062_ Acquired 15 matter. 02193_ Triggered Piercing Trap. 02193_ Spikes shoot up from the floor. 02193_ Critical hit (Impale). 02215_ Lgt. Armor Plating destroyed. 02219_ TV-UG2(R) destroyed. 02223_ Acquired Sub. Optics. 02224_ Acquired 4 matter. 02226_ Acquired 26 matter. 02363_ The unstable cave ceiling collapses. 02447_ Acquired derelict log, extracted data. World map updated: -9/Materials. 02472_ BO-9H6(R) destroyed. 02473_ Acquired 36 matter. Map ----- +----------------------------------------------------+ | ?????????????????????????????????????????????????? | | ?????????????????????????????????????????????????? | | ?????????????????????????????????????????????????? | | ?????????????????????????????????????????????????? | | ?????????????????????????????????????????????????? | | ?????????????????????????????????????????????????? | | ?????????????????????????????????????????????????? | | ?????????????????????????????????????????????????? | | ?????????????????????????????????????????????????? | | ?????????????????????????????????????????????????? | | ?????????????????????????????????????????????????? | | ?????????????????????????????????????????????????? | | ???????????????????????????????????????????????### | | ??????????????????????????????????????#???????## | | ??????????????????????????????????????? ?????## | | ???????????????????????????????????????? ##### | | ???????????????????????????????##???????? | | ??????????????????????????????? ?????????? | | ?????????????????????????????? ???????????# | | ?????????????????????????????? ?????????????# | | ????????????????????????????? #????????????##" | | ????????????????????????????? ???????????###""" | | ??????????????????????###### ##??????????# """"" | | ????????????????????### % # ???????????# """ | | ????????????????????# &#!#????????????## " | | ????????????????????# @R##???????# ????#### | | ???????????????##??## #&##????????# ??????# ## | | ??????????????## ### ;##?????????# "????## ## | | ??""??"######## #??###???????# "?### # | | ?#"""?" ## ##?## ###?????# ## | | ? " # # # ##??# #"#??????# """ | | ? ### # #######?## #######?## """ | | ?##"# ### #### #?# #?# """"#??####"" | | ###"####?#????## #?# ??# " ##????# | | "#"""# #??????# ### #??##### # #????#"" | | "###"""#???#### ## #??????### ##????#"""#### | | """"#"##??##"" #????????# ""##?#### ##??? | | """#""###?#"""## #??########" ### ##### | | "" """ ###" #"" ### ##### ##""# # | | ""###"""" """""# # | | ""#######"""#### | | """#????##"##""# # ## #### | | # #??##"##"#"# # ## ##### ## ##??# | | ##??"#""""""" ####### #??# #####???# | | ##?###""###"""" #?????# " "#?## ##???????# | | #?##"""###"# " ##?????#""" #?# ####?????# | | ###"##"#"" ##??????##" ### #?????## | | ### "#" ##???????# #??????# | | #??# " #???????# #??????## | | ???######## ##???????### ## ## ## ##???????## | +----------------------------------------------------+ Best States ------------- Heat Dissipation 39 Energy Generation 12 Energy Capacity 265 Matter Stores 300 Matter Capacity 300 Sight Range 16 Terrain Scan Density 10 Armor Coverage 150 Evasion (%) 50 Recoil Reduction 2 Item Schematics ----------------- None Robot Schematics ------------------ None Fabricated ------------ Nothing Repaired ---------- Nothing Alien Tech Used ----------------- None Achievements -------------- None Challenges ------------ None Game ------ Seed ShieldDamperShotgun Manual? 0 Play Time 00:17:20 Cumulative 261.5 hours Start 2025.05.07 @ 01:00:34 End 2025.05.07 @ 01:17:03 Sessions 1 Manual Loads 0 Difficulty Rogue Special Mode None Game No. 211 Rogue 202 Adventurer 9 Explorer 0 Win Type - Total 2 Types 1/0/0/1/0/0/0/0/0/0 Lore% 83 Gallery% 70 Achievement% 64 Wizard Run 0 Options --------- Layout 1 ASCII 0 Keyboard 0 Movement Numpad Keybinds 0 Fullscreen 1 Font 24/Smallcaps Map View 50x35 Zoom Use 0% Tactical HUD 1 Map Filters NONE Filters NONE Steam 1 RUN: 06adf145-42bb-4875-8fbc-e2c3881153e0